[Event "*** Titled Tuesday 3|2 Blitz"]
[Site "Chess.com"]
[Date "2014.12.30"]
[Round "2"]
[White "David_Klein"]
[Black "GM_Barcenilla"]
[Result "1-0"]
[WhiteElo "2372"]
[BlackElo "2553"]
[TimeControl "180+2"]
[EndTime "11:20:30 PST"]
[Termination "David_Klein won by resignation"]

1. g3 {[%clk 0:03:00]} 1... g6 {[%clk 0:02:59.4]} 2. Bg2 {[%clk 0:03:00.8]} 2...
Bg7 {[%clk 0:03:01]} 3. d3 {[%clk 0:03:00.8]} 3... d6 {[%clk 0:03:02.5]} 4. Nf3
{[%clk 0:03:01.2]} 4... e5 {[%clk 0:03:03.6]} 5. e4 {[%clk 0:03:01.3]} 5... Nc6
{[%clk 0:03:03.4]} 6. c3 {[%clk 0:03:01.5]} 6... Nge7 {[%clk 0:02:58.8]} 7. Nbd2
{[%clk 0:03:00.6]} 7... h6 {[%clk 0:02:58.4]} 8. b4 {[%clk 0:02:59.7]} 8... a6
{[%clk 0:02:56.7]} 9. Rb1 {[%clk 0:03:00]} 9... Be6 {[%clk 0:02:54.9]} 10. a4
{[%clk 0:03:00]} 10... Qd7 {[%clk 0:02:56.1]} 11. Qe2 {[%clk 0:02:51.1]} 11...
O-O {[%clk 0:02:42.4]} 12. h4 {[%clk 0:02:49.1]} 12... b5 {[%clk 0:02:40.4]} 13.
Nf1 {[%clk 0:02:35.2]} 13... bxa4 {[%clk 0:02:33.3]} 14. h5 {[%clk 0:02:34.9]}
14... g5 {[%clk 0:02:30.1]} 15. Nxg5 {[%clk 0:02:12.6]} 15... hxg5 {[%clk
0:02:29.5]} 16. h6 {[%clk 0:02:11.9]} 16... f6 {[%clk 0:01:41]} 17. hxg7 {[%clk
0:01:40.2]} 17... Kxg7 {[%clk 0:01:42.9]} 18. f4 {[%clk 0:01:41.7]} 18... gxf4
{[%clk 0:01:27.7]} 19. gxf4 {[%clk 0:01:42.6]} 19... exf4 {[%clk 0:01:13.5]} 20.
Bxf4 {[%clk 0:01:42.1]} 20... Rh8 {[%clk 0:01:13.6]} 21. Ne3 {[%clk 0:01:33.9]}
21... Rxh1+ {[%clk 0:01:09.3]} 22. Bxh1 {[%clk 0:01:35.8]} 22... Ne5 {[%clk
0:01:08.1]} 23. Kd2 {[%clk 0:01:35.5]} 23... N7g6 {[%clk 0:01:04.8]} 24. Rg1
{[%clk 0:01:33.1]} 24... Kf7 {[%clk 0:01:02.8]} 25. Bxe5 {[%clk 0:01:24.5]}
25... dxe5 {[%clk 0:01:01]} 26. Qh5 {[%clk 0:01:21]} 26... Rg8 {[%clk
0:01:00.1]} 27. Nf5 {[%clk 0:01:22]} 27... a3 {[%clk 0:00:37.4]} 28. Nh6+ {[%clk
0:01:05.4]} 28... Kf8 {[%clk 0:00:22.3]} 29. Nxg8 {[%clk 0:01:04.9]} 29... Qxd3+
{[%clk 0:00:16.8]} 30. Kxd3 {[%clk 0:01:01.7]} 30... Nf4+ {[%clk 0:00:18.7]} 31.
Kc2 {[%clk 0:01:01.5]} 31... Nxh5 {[%clk 0:00:20.6]} 32. Nh6 {[%clk 0:01:00.9]}
32... a2 {[%clk 0:00:21.3]} 33. Kb2 {[%clk 0:01:01.4]} 33... Nf4 {[%clk
0:00:19.2]} 34. Rd1 {[%clk 0:00:55.6]} 34... Nh3 {[%clk 0:00:11.7]} 35. Bg2
{[%clk 0:00:48.6]} 35... Nf4 {[%clk 0:00:11.3]} 36. Bf3 {[%clk 0:00:49.1]} 36...
Bc4 {[%clk 0:00:11]} 37. Nf5 {[%clk 0:00:47.9]} 37... Nd3+ {[%clk 0:00:11.9]}
38. Rxd3 {[%clk 0:00:49.1]} 38... Bxd3 {[%clk 0:00:13]} 39. Kxa2 {[%clk
0:00:50.4]} 1-0

[Event "*** Titled Tuesday 3|2 Blitz"]
[Site "Chess.com"]
[Date "2014.12.30"]
[Round "2"]
[White "ItalianMachine"]
[Black "crisfoisor"]
[Result "1-0"]
[WhiteElo "2170"]
[BlackElo "2067"]
[TimeControl "180+2"]
[EndTime "11:20:45 PST"]
[Termination "ItalianMachine won on time"]

1. e4 {[%clk 0:02:58.8]} 1... c5 {[%clk 0:02:23.4]} 2. Nf3 {[%clk 0:02:57.2]}
2... a6 {[%clk 0:02:24.1]} 3. c3 {[%clk 0:02:54.7]} 3... g6 {[%clk 0:02:23.8]}
4. d4 {[%clk 0:02:55.6]} 4... cxd4 {[%clk 0:02:24.9]} 5. cxd4 {[%clk 0:02:56.7]}
5... d5 {[%clk 0:02:24.5]} 6. e5 {[%clk 0:02:56.5]} 6... Bg7 {[%clk 0:02:24.7]}
7. h3 {[%clk 0:02:56.1]} 7... Nc6 {[%clk 0:02:25.6]} 8. Nc3 {[%clk 0:02:56.9]}
8... Nh6 {[%clk 0:02:20.7]} 9. Qb3 {[%clk 0:02:46]} 9... e6 {[%clk 0:02:18.8]}
10. Bg5 {[%clk 0:02:43.9]} 10... Qa5 {[%clk 0:02:04.8]} 11. g4 {[%clk
0:02:41.8]} 11... Ng8 {[%clk 0:02:03.5]} 12. Bd2 {[%clk 0:02:40.7]} 12... Qd8
{[%clk 0:02:02.5]} 13. Bg2 {[%clk 0:02:25.4]} 13... Nge7 {[%clk 0:02:03.1]} 14.
O-O {[%clk 0:02:24.8]} 14... h5 {[%clk 0:02:04]} 15. Bg5 {[%clk 0:02:22.2]}
15... hxg4 {[%clk 0:02:03.6]} 16. hxg4 {[%clk 0:02:24.1]} 16... O-O {[%clk
0:01:57.2]} 17. Rfd1 {[%clk 0:01:28.7]} 17... f6 {[%clk 0:01:57]} 18. exf6
{[%clk 0:01:27.4]} 18... Bxf6 {[%clk 0:01:57.6]} 19. Bxf6 {[%clk 0:01:27.7]}
19... Rxf6 {[%clk 0:01:57.4]} 20. Ne2 {[%clk 0:01:24.8]} 20... Qf8 {[%clk
0:01:57.3]} 21. Qe3 {[%clk 0:01:23.4]} 21... Bd7 {[%clk 0:01:54]} 22. Rac1
{[%clk 0:01:17.5]} 22... Rc8 {[%clk 0:01:52.4]} 23. Kh2 {[%clk 0:00:58.1]} 23...
Qg7 {[%clk 0:01:51.5]} 24. Rh1 {[%clk 0:00:47.1]} 24... Rcf8 {[%clk 0:01:51.9]}
25. Rcf1 {[%clk 0:00:36.3]} 25... Na5 {[%clk 0:01:38.2]} 26. b3 {[%clk
0:00:36.4]} 26... Nac6 {[%clk 0:01:30]} 27. Ng5 {[%clk 0:00:36.9]} 27... Nb4
{[%clk 0:00:51.1]} 28. Kg3 {[%clk 0:00:34.1]} 28... Nc2 {[%clk 0:00:46.7]} 29.
Qd2 {[%clk 0:00:33]} 29... Nf5+ {[%clk 0:00:30.9]} 30. gxf5 {[%clk 0:00:32.8]}
30... Rxf5 {[%clk 0:00:28.3]} 31. f4 {[%clk 0:00:34.2]} 31... Bb5 {[%clk
0:00:16.8]} 32. Qxc2 {[%clk 0:00:32.1]} 32... Rxg5+ {[%clk 0:00:08.4]} 33. fxg5
{[%clk 0:00:31.7]} 1-0

[Event "*** Titled Tuesday 3|2 Blitz"]
[Site "Chess.com"]
[Date "2014.12.30"]
[Round "2"]
[White "swayamsm"]
[Black "DARIO555"]
[Result "0-1"]
[WhiteElo "2309"]
[BlackElo "2220"]
[TimeControl "180+2"]
[EndTime "11:20:50 PST"]
[Termination "DARIO555 won by resignation"]

1. d4 {[%clk 0:03:00]} 1... d6 {[%clk 0:02:58.5]} 2. c4 {[%clk 0:03:01.2]} 2...
e5 {[%clk 0:02:59.6]} 3. Nf3 {[%clk 0:02:55.8]} 3... e4 {[%clk 0:03:00.4]} 4.
Nfd2 {[%clk 0:02:56.7]} 4... f5 {[%clk 0:03:01.4]} 5. Nc3 {[%clk 0:02:43.4]}
5... Nf6 {[%clk 0:03:00.7]} 6. e3 {[%clk 0:02:44.5]} 6... c6 {[%clk 0:03:01.6]}
7. b4 {[%clk 0:02:45.3]} 7... Na6 {[%clk 0:03:00.9]} 8. Qb3 {[%clk 0:02:43.2]}
8... Be6 {[%clk 0:02:57.3]} 9. b5 {[%clk 0:02:43.5]} 9... Nc7 {[%clk 0:02:52.9]}
10. a4 {[%clk 0:02:43.7]} 10... Be7 {[%clk 0:02:41.2]} 11. Be2 {[%clk
0:02:43.6]} 11... O-O {[%clk 0:02:41.8]} 12. g3 {[%clk 0:02:41.7]} 12... c5
{[%clk 0:02:27.8]} 13. d5 {[%clk 0:02:36.3]} 13... Bf7 {[%clk 0:02:28.9]} 14. a5
{[%clk 0:02:37.1]} 14... Bh5 {[%clk 0:02:28]} 15. Ba3 {[%clk 0:02:35.2]} 15...
b6 {[%clk 0:02:24.4]} 16. Bb2 {[%clk 0:02:23.1]} 16... Bxe2 {[%clk 0:02:25]} 17.
Nxe2 {[%clk 0:02:25]} 17... Ng4 {[%clk 0:02:25.6]} 18. Nf4 {[%clk 0:02:24.6]}
18... Bf6 {[%clk 0:02:22.8]} 19. O-O {[%clk 0:02:07.5]} 19... Bxb2 {[%clk
0:02:22.3]} 20. Qxb2 {[%clk 0:02:09.4]} 20... Qe7 {[%clk 0:02:14.7]} 21. axb6
{[%clk 0:02:08.5]} 21... axb6 {[%clk 0:02:15.3]} 22. Rxa8 {[%clk 0:02:10.4]}
22... Rxa8 {[%clk 0:02:15.1]} 23. Ra1 {[%clk 0:02:12.3]} 23... Rxa1+ {[%clk
0:02:15]} 24. Qxa1 {[%clk 0:02:14.2]} 24... Ne5 {[%clk 0:02:03.7]} 25. Qa7
{[%clk 0:01:59.5]} 25... Kf7 {[%clk 0:01:49]} 26. Qxb6 {[%clk 0:01:52.9]} 26...
g5 {[%clk 0:01:36.4]} 27. Ne2 {[%clk 0:01:27]} 27... Nf3+ {[%clk 0:01:36.9]} 28.
Nxf3 {[%clk 0:01:26.5]} 28... exf3 {[%clk 0:01:38.2]} 29. Nc3 {[%clk 0:01:27.9]}
29... Ne8 {[%clk 0:01:34.4]} 30. Qa5 {[%clk 0:01:25.5]} 30... f4 {[%clk
0:01:32.6]} 31. Nd1 {[%clk 0:01:22.1]} 31... Qe4 {[%clk 0:01:13.6]} 32. Qd2
{[%clk 0:01:01.3]} 32... Qxc4 {[%clk 0:01:00.3]} 33. exf4 {[%clk 0:00:57.9]}
33... Qe2 {[%clk 0:00:59.4]} 34. Qxe2 {[%clk 0:00:18.1]} 34... fxe2 {[%clk
0:01:00.3]} 35. Ne3 {[%clk 0:00:19.2]} 35... e1=Q+ {[%clk 0:01:01.1]} 36. Kg2
{[%clk 0:00:21.1]} 36... gxf4 {[%clk 0:01:00.2]} 37. gxf4 {[%clk 0:00:23]} 37...
Nf6 {[%clk 0:00:59.3]} 38. b6 {[%clk 0:00:22.8]} 38... Qb4 {[%clk 0:00:58.4]}
39. Nf5 {[%clk 0:00:22.8]} 39... Qxb6 {[%clk 0:00:59.1]} 40. Kg3 {[%clk
0:00:21.3]} 40... c4 {[%clk 0:01:00.1]} 41. Ne3 {[%clk 0:00:19.8]} 0-1

[Event "*** Titled Tuesday 3|2 Blitz"]
[Site "Chess.com"]
[Date "2014.12.30"]
[Round "2"]
[White "Squirlolz"]
[Black "IMRosen"]
[Result "0-1"]
[WhiteElo "2119"]
[BlackElo "2029"]
[TimeControl "180+2"]
[EndTime "11:21:30 PST"]
[Termination "IMRosen won by resignation"]

1. e4 {[%clk 0:03:00]} 1... c5 {[%clk 0:02:58.9]} 2. Nc3 {[%clk 0:03:00.9]} 2...
e6 {[%clk 0:03:00.3]} 3. f4 {[%clk 0:03:02.1]} 3... a6 {[%clk 0:03:01.5]} 4. Nf3
{[%clk 0:03:02.8]} 4... Nc6 {[%clk 0:03:02.1]} 5. d3 {[%clk 0:03:03.8]} 5... b5
{[%clk 0:03:02.6]} 6. g4 {[%clk 0:03:04.8]} 6... b4 {[%clk 0:03:01.5]} 7. Ne2
{[%clk 0:03:05.7]} 7... d5 {[%clk 0:03:03.1]} 8. Ng3 {[%clk 0:03:03.7]} 8...
dxe4 {[%clk 0:02:58.1]} 9. dxe4 {[%clk 0:03:00.5]} 9... Qxd1+ {[%clk 0:03:00]}
10. Kxd1 {[%clk 0:03:02.4]} 10... Bb7 {[%clk 0:03:01.3]} 11. Be3 {[%clk
0:02:56.6]} 11... O-O-O+ {[%clk 0:03:01.3]} 12. Ke2 {[%clk 0:02:56.6]} 12... Nf6
{[%clk 0:02:59.6]} 13. g5 {[%clk 0:02:57.1]} 13... Nd7 {[%clk 0:02:54.5]} 14.
Rd1 {[%clk 0:02:56.5]} 14... Be7 {[%clk 0:02:54.9]} 15. h4 {[%clk 0:02:54.7]}
15... Nb6 {[%clk 0:02:56.1]} 16. Bg2 {[%clk 0:02:51.1]} 16... Kc7 {[%clk
0:02:55.7]} 17. e5 {[%clk 0:02:41.7]} 17... a5 {[%clk 0:02:54.7]} 18. Ne4 {[%clk
0:02:38.8]} 18... c4 {[%clk 0:02:20.6]} 19. Bc5 {[%clk 0:02:27.3]} 19... Bxc5
{[%clk 0:02:19.2]} 20. Nxc5 {[%clk 0:02:29.2]} 20... Nd5 {[%clk 0:02:20.9]} 21.
Kf2 {[%clk 0:01:13.9]} 21... Nxf4 {[%clk 0:02:15.5]} 22. Nxb7 {[%clk 0:01:01.3]}
22... Kxb7 {[%clk 0:02:08]} 23. Rxd8 {[%clk 0:00:54.7]} 23... Rxd8 {[%clk
0:02:09.9]} 24. Bf1 {[%clk 0:00:56.6]} 24... c3 {[%clk 0:01:54.6]} 25. bxc3
{[%clk 0:00:56.7]} 25... bxc3 {[%clk 0:01:56.5]} 26. Bb5 {[%clk 0:00:52.3]}
26... Nb4 {[%clk 0:01:24]} 27. Rb1 {[%clk 0:00:26.8]} 27... Kc7 {[%clk
0:01:13.1]} 28. Rb3 {[%clk 0:00:27.8]} 28... Nfd5 {[%clk 0:01:13.4]} 29. Bc4
{[%clk 0:00:28.3]} 29... a4 {[%clk 0:01:04]} 30. Ra3 {[%clk 0:00:27.4]} 30...
Ra8 {[%clk 0:00:54.5]} 31. Bxd5 {[%clk 0:00:23.9]} 31... Nxd5 {[%clk 0:00:56.4]}
32. Nd4 {[%clk 0:00:23.5]} 32... Kb6 {[%clk 0:00:48.7]} 33. Ne2 {[%clk
0:00:05.1]} 33... Kc5 {[%clk 0:00:46.8]} 34. Nxc3 {[%clk 0:00:06.3]} 34... Kb4
{[%clk 0:00:41.4]} 35. Rxa4+ {[%clk 0:00:05.6]} 35... Rxa4 {[%clk 0:00:41.2]}
36. Nxa4 {[%clk 0:00:07.5]} 36... Kxa4 {[%clk 0:00:43.1]} 37. Ke2 {[%clk
0:00:05.4]} 37... Nb4 {[%clk 0:00:35.5]} 38. c4 {[%clk 0:00:05.2]} 38... Nxa2
{[%clk 0:00:35.5]} 39. Kd3 {[%clk 0:00:07.1]} 39... Ka5 {[%clk 0:00:29.7]} 40.
Kd4 {[%clk 0:00:09]} 40... Kb6 {[%clk 0:00:30.5]} 41. h5 {[%clk 0:00:07.6]}
41... Kc6 {[%clk 0:00:29.2]} 42. h6 {[%clk 0:00:09.5]} 42... g6 {[%clk
0:00:29.3]} 43. Kd3 {[%clk 0:00:10.4]} 43... Kc5 {[%clk 0:00:29]} 44. Ke4 {[%clk
0:00:04.3]} 44... Kxc4 {[%clk 0:00:30.9]} 45. Kf4 {[%clk 0:00:05.8]} 45... Kd4
{[%clk 0:00:32.2]} 0-1

[Event "*** Titled Tuesday 3|2 Blitz"]
[Site "Chess.com"]
[Date "2014.12.30"]
[Round "2"]
[White "DanielRensch"]
[Black "FairChess_on_YouTube"]
[Result "0-1"]
[WhiteElo "2344"]
[BlackElo "2707"]
[TimeControl "180+2"]
[EndTime "11:21:31 PST"]
[Termination "FairChess_on_YouTube won by resignation"]

1. d4 {[%clk 0:02:56.6]} 1... d5 {[%clk 0:02:58.2]} 2. Nc3 {[%clk 0:02:57.4]}
2... Bf5 {[%clk 0:02:57.8]} 3. Bf4 {[%clk 0:02:55.1]} 3... Nf6 {[%clk
0:02:57.2]} 4. f3 {[%clk 0:02:54.9]} 4... e6 {[%clk 0:02:57]} 5. g4 {[%clk
0:02:55.7]} 5... Bg6 {[%clk 0:02:57.7]} 6. h4 {[%clk 0:02:57.6]} 6... h6 {[%clk
0:02:53.4]} 7. h5 {[%clk 0:02:58.3]} 7... Bh7 {[%clk 0:02:54.6]} 8. e3 {[%clk
0:02:59.5]} 8... Bd6 {[%clk 0:02:55.2]} 9. Bd3 {[%clk 0:02:52.5]} 9... Nc6
{[%clk 0:02:40.8]} 10. Nge2 {[%clk 0:02:51.7]} 10... Qd7 {[%clk 0:02:14.5]} 11.
a3 {[%clk 0:02:47.4]} 11... O-O-O {[%clk 0:02:14.2]} 12. Bxh7 {[%clk 0:02:42.1]}
12... Nxh7 {[%clk 0:02:14.8]} 13. Qd3 {[%clk 0:02:44]} 13... Ng5 {[%clk
0:02:12.7]} 14. Bxg5 {[%clk 0:02:36.4]} 14... hxg5 {[%clk 0:02:13.1]} 15. O-O-O
{[%clk 0:02:38.3]} 15... Na5 {[%clk 0:02:08]} 16. e4 {[%clk 0:02:34.1]} 16...
Qc6 {[%clk 0:02:04.7]} 17. exd5 {[%clk 0:02:21.5]} 17... exd5 {[%clk 0:02:05.9]}
18. Qf5+ {[%clk 0:02:22.6]} 18... Kb8 {[%clk 0:02:07.3]} 19. Kb1 {[%clk
0:02:01.4]} 19... Nc4 {[%clk 0:01:36]} 20. Qxd5 {[%clk 0:01:50.8]} 20... Qxd5
{[%clk 0:01:36.5]} 21. Nxd5 {[%clk 0:01:51.9]} 21... Bxa3 {[%clk 0:01:38.2]} 22.
b3 {[%clk 0:01:35.3]} 22... Nb2 {[%clk 0:01:20.4]} 23. c4 {[%clk 0:01:24.1]}
23... Nxd1 {[%clk 0:01:20.8]} 24. Rxd1 {[%clk 0:01:26]} 24... Rhe8 {[%clk
0:01:19.8]} 25. Ng3 {[%clk 0:01:25.1]} 25... c6 {[%clk 0:01:18.6]} 26. Nc3
{[%clk 0:01:25.2]} 26... Re3 {[%clk 0:01:19.7]} 27. Kc2 {[%clk 0:01:17.2]} 27...
Rxf3 {[%clk 0:01:20.5]} 28. Nge4 {[%clk 0:01:18.2]} 28... Bb4 {[%clk 0:01:19.1]}
29. d5 {[%clk 0:01:13.9]} 29... Bxc3 {[%clk 0:01:18.3]} 30. Nxc3 {[%clk
0:01:13.5]} 30... cxd5 {[%clk 0:01:16.4]} 31. Nxd5 {[%clk 0:01:15.4]} 31... Re8
{[%clk 0:01:16.7]} 32. Kb2 {[%clk 0:01:13.3]} 32... Re4 {[%clk 0:01:08.9]} 33.
Nc3 {[%clk 0:01:03.3]} 33... Rxg4 {[%clk 0:01:05.4]} 34. Nb5 {[%clk 0:01:02.6]}
34... b6 {[%clk 0:00:52.6]} 35. Rd8+ {[%clk 0:00:58.9]} 35... Kb7 {[%clk
0:00:53.9]} 36. Rd7+ {[%clk 0:01:00]} 36... Kc8 {[%clk 0:00:54.7]} 37. Rxa7
{[%clk 0:00:50.1]} 37... Rg2+ {[%clk 0:00:55]} 38. Ka3 {[%clk 0:00:50.7]} 38...
Rd2 {[%clk 0:00:56.4]} 39. Ra8+ {[%clk 0:00:33.9]} 39... Kd7 {[%clk 0:00:54.4]}
40. Ra7+ {[%clk 0:00:35.2]} 40... Ke6 {[%clk 0:00:46.7]} 41. Nc7+ {[%clk
0:00:36]} 41... Ke5 {[%clk 0:00:46.6]} 42. Ne8 {[%clk 0:00:27.2]} 42... Rdd3
{[%clk 0:00:35.3]} 43. Re7+ {[%clk 0:00:25.6]} 43... Kd4 {[%clk 0:00:36.8]} 44.
Rd7+ {[%clk 0:00:16]} 44... Kc3 {[%clk 0:00:38]} 45. Rb7 {[%clk 0:00:10.9]}
45... Kc2 {[%clk 0:00:31.7]} 0-1

[Event "*** Titled Tuesday 3|2 Blitz"]
[Site "Chess.com"]
[Date "2014.12.30"]
[Round "2"]
[White "exoticprincess"]
[Black "hitaman"]
[Result "1-0"]
[WhiteElo "2617"]
[BlackElo "2395"]
[TimeControl "180+2"]
[EndTime "11:21:37 PST"]
[Termination "exoticprincess won by resignation"]

1. b3 {[%clk 0:02:52.4]} 1... e5 {[%clk 0:02:35.8]} 2. Bb2 {[%clk 0:02:54.3]}
2... Nc6 {[%clk 0:02:34.3]} 3. Bc1 {[%clk 0:02:56.2]} 3... g6 {[%clk 0:02:34.3]}
4. Bb2 {[%clk 0:02:41.4]} 4... Bg7 {[%clk 0:02:30.3]} 5. e3 {[%clk 0:02:43.3]}
5... Nge7 {[%clk 0:02:30.7]} 6. Nf3 {[%clk 0:02:27.1]} 6... O-O {[%clk
0:02:29.4]} 7. Bb5 {[%clk 0:02:21.2]} 7... d5 {[%clk 0:02:25.4]} 8. O-O {[%clk
0:02:21.8]} 8... a6 {[%clk 0:02:25]} 9. Bxc6 {[%clk 0:02:22.5]} 9... Nxc6 {[%clk
0:02:26.9]} 10. d3 {[%clk 0:02:23.8]} 10... f5 {[%clk 0:02:23.1]} 11. Nbd2
{[%clk 0:02:24.6]} 11... Be6 {[%clk 0:02:14]} 12. Rb1 {[%clk 0:02:21.9]} 12...
a5 {[%clk 0:02:10.7]} 13. a3 {[%clk 0:02:22]} 13... d4 {[%clk 0:02:09.8]} 14.
Re1 {[%clk 0:02:21.8]} 14... Re8 {[%clk 0:02:03]} 15. h3 {[%clk 0:02:19.9]}
15... h6 {[%clk 0:02:01.8]} 16. e4 {[%clk 0:02:19.1]} 16... f4 {[%clk
0:02:01.3]} 17. c3 {[%clk 0:02:19.5]} 17... g5 {[%clk 0:01:53.9]} 18. cxd4
{[%clk 0:02:18.7]} 18... exd4 {[%clk 0:01:54.4]} 19. Nh2 {[%clk 0:02:17.5]}
19... Qe7 {[%clk 0:01:46]} 20. Rc1 {[%clk 0:02:17.6]} 20... Qf7 {[%clk
0:01:37.1]} 21. Nhf3 {[%clk 0:02:12.8]} 21... Rad8 {[%clk 0:01:32.7]} 22. Rc5
{[%clk 0:02:10.1]} 22... Kh8 {[%clk 0:01:13.1]} 23. Qa1 {[%clk 0:02:07]} 23...
Bxb3 {[%clk 0:01:04.3]} 24. Rxc6 {[%clk 0:02:02.7]} 24... bxc6 {[%clk
0:01:04.3]} 25. Nxd4 {[%clk 0:02:00.9]} 25... Bxd4 {[%clk 0:00:45.9]} 26. Bxd4+
{[%clk 0:02:00.8]} 26... Kh7 {[%clk 0:00:47.8]} 27. Qc3 {[%clk 0:02:00.9]} 27...
a4 {[%clk 0:00:48]} 28. Nf3 {[%clk 0:01:56.5]} 28... Re6 {[%clk 0:00:43.1]} 29.
Ne5 {[%clk 0:01:53.4]} 29... Qg7 {[%clk 0:00:31.1]} 30. Nf3 {[%clk 0:01:50.8]}
30... Qf7 {[%clk 0:00:28.5]} 31. Bc5 {[%clk 0:01:47]} 31... Qd7 {[%clk
0:00:24.9]} 32. Ne5 {[%clk 0:01:43]} 32... Qg7 {[%clk 0:00:25]} 33. d4 {[%clk
0:01:43.4]} 33... h5 {[%clk 0:00:25]} 34. Qf3 {[%clk 0:01:42.1]} 34... Kh6
{[%clk 0:00:24.3]} 35. h4 {[%clk 0:01:41.4]} 35... gxh4 {[%clk 0:00:22.4]} 36.
Qxf4+ {[%clk 0:01:42]} 36... Kh7 {[%clk 0:00:23.4]} 37. Qf5+ {[%clk 0:01:42.5]}
37... Rg6 {[%clk 0:00:20]} 38. Re3 {[%clk 0:01:36.8]} 38... Rg8 {[%clk
0:00:17.1]} 39. Nxg6 {[%clk 0:01:33.1]} 39... Qxg6 {[%clk 0:00:18.1]} 40. Qxg6+
{[%clk 0:01:34.4]} 40... Rxg6 {[%clk 0:00:18.1]} 41. Rh3 {[%clk 0:01:34.8]}
41... Re6 {[%clk 0:00:17.9]} 42. Rxh4 {[%clk 0:01:35.8]} 42... Kg6 {[%clk
0:00:18.8]} 43. f3 {[%clk 0:01:36.2]} 43... Re8 {[%clk 0:00:18.2]} 44. Kf2
{[%clk 0:01:36.8]} 44... Bc2 {[%clk 0:00:19.5]} 45. g4 {[%clk 0:01:37.7]} 45...
hxg4 {[%clk 0:00:17.9]} 46. Rxg4+ {[%clk 0:01:39.6]} 46... Kf6 {[%clk
0:00:19.4]} 47. Ke3 {[%clk 0:01:39.2]} 47... Bb1 {[%clk 0:00:20.3]} 48. Rh4
{[%clk 0:01:39]} 48... Kg6 {[%clk 0:00:21.3]} 49. Rh1 {[%clk 0:01:39]} 49... Bc2
{[%clk 0:00:22.3]} 50. Rc1 {[%clk 0:01:39.4]} 50... Bb3 {[%clk 0:00:23.5]} 51.
f4 {[%clk 0:01:39.1]} 51... Bd5 {[%clk 0:00:24.7]} 52. Rg1+ {[%clk 0:01:34.6]}
52... Kf7 {[%clk 0:00:22.8]} 53. e5 {[%clk 0:01:36.4]} 53... Rg8 {[%clk
0:00:22.6]} 54. Rxg8 {[%clk 0:01:36.5]} 54... Kxg8 {[%clk 0:00:24.5]} 55. f5
{[%clk 0:01:38.4]} 55... Kf7 {[%clk 0:00:25.7]} 56. Kf4 {[%clk 0:01:39.5]} 56...
Bb3 {[%clk 0:00:26.5]} 57. e6+ {[%clk 0:01:35.9]} 57... Kf6 {[%clk 0:00:27.5]}
58. d5 {[%clk 0:01:18.5]} 1-0

[Event "*** Titled Tuesday 3|2 Blitz"]
[Site "Chess.com"]
[Date "2014.12.30"]
[Round "2"]
[White "VovAn1991"]
[Black "Dr-Bassem"]
[Result "1-0"]
[WhiteElo "2416"]
[BlackElo "2366"]
[TimeControl "180+2"]
[EndTime "11:21:44 PST"]
[Termination "VovAn1991 won on time"]

1. e4 {[%clk 0:03:00]} 1... e5 {[%clk 0:02:58.5]} 2. Nf3 {[%clk 0:03:00.5]} 2...
Nc6 {[%clk 0:02:59.8]} 3. Bc4 {[%clk 0:02:59.1]} 3... Nf6 {[%clk 0:03:00.3]} 4.
O-O {[%clk 0:02:58.8]} 4... Nxe4 {[%clk 0:02:47.4]} 5. d4 {[%clk 0:02:59.5]}
5... d5 {[%clk 0:02:47.6]} 6. Bb5 {[%clk 0:02:59.1]} 6... exd4 {[%clk
0:02:45.6]} 7. Nxd4 {[%clk 0:02:57.1]} 7... Bd7 {[%clk 0:02:46]} 8. c4 {[%clk
0:02:57]} 8... Bc5 {[%clk 0:02:38.8]} 9. Nb3 {[%clk 0:02:52.3]} 9... dxc4 {[%clk
0:02:01.1]} 10. Nxc5 {[%clk 0:02:42.3]} 10... Nxc5 {[%clk 0:02:03]} 11. Be3
{[%clk 0:02:36.7]} 11... Ne6 {[%clk 0:01:49.8]} 12. Bxc4 {[%clk 0:02:37]} 12...
O-O {[%clk 0:01:49.6]} 13. Nc3 {[%clk 0:02:38.2]} 13... Ne5 {[%clk 0:01:49.8]}
14. Bb3 {[%clk 0:02:37.7]} 14... Bc6 {[%clk 0:01:50.4]} 15. Qh5 {[%clk
0:02:36.2]} 15... Qf6 {[%clk 0:01:45.3]} 16. Bd5 {[%clk 0:01:06.6]} 16... Rad8
{[%clk 0:01:44.2]} 17. Rad1 {[%clk 0:01:06.3]} 17... Nf4 {[%clk 0:01:02.3]} 18.
Bxf4 {[%clk 0:01:03.3]} 18... Qxf4 {[%clk 0:01:04.2]} 19. Bxc6 {[%clk
0:00:58.8]} 19... Nxc6 {[%clk 0:00:55.3]} 20. Nd5 {[%clk 0:00:59.5]} 20... Qd6
{[%clk 0:00:54.5]} 21. Rfe1 {[%clk 0:00:47.7]} 21... Rfe8 {[%clk 0:00:55.4]} 22.
Ne3 {[%clk 0:00:39.3]} 22... Qe5 {[%clk 0:00:45.7]} 23. Qg4 {[%clk 0:00:39.8]}
23... Nd4 {[%clk 0:00:41.7]} 24. Nc2 {[%clk 0:00:24.2]} 24... Ne2+ {[%clk
0:00:16.4]} 25. Kh1 {[%clk 0:00:22.5]} 25... Rxd1 {[%clk 0:00:17.2]} 26. Rxd1
{[%clk 0:00:24.4]} 26... Qxb2 {[%clk 0:00:17.4]} 27. Qxe2 {[%clk 0:00:25.2]}
27... Rf8 {[%clk 0:00:09.9]} 28. Qc4 {[%clk 0:00:26]} 28... g6 {[%clk
0:00:09.8]} 29. h3 {[%clk 0:00:17.8]} 29... c6 {[%clk 0:00:10.7]} 30. Kg1 {[%clk
0:00:16.6]} 30... Re8 {[%clk 0:00:10.4]} 31. Ne3 {[%clk 0:00:17.4]} 31... Re6
{[%clk 0:00:07.2]} 32. g3 {[%clk 0:00:16.9]} 32... h5 {[%clk 0:00:07.2]} 33. h4
{[%clk 0:00:14.2]} 33... b5 {[%clk 0:00:06.4]} 34. Qc5 {[%clk 0:00:14.9]} 34...
Qxa2 {[%clk 0:00:06.3]} 35. Rd8+ {[%clk 0:00:15.5]} 35... Kh7 {[%clk 0:00:07.3]}
36. Qf8 {[%clk 0:00:16.6]} 36... Qa1+ {[%clk 0:00:08.5]} 37. Kg2 {[%clk
0:00:16.9]} 37... Qg7 {[%clk 0:00:10.4]} 38. Qc5 {[%clk 0:00:14.4]} 38... a5
{[%clk 0:00:11.3]} 39. Rd7 {[%clk 0:00:12.2]} 39... Qf6 {[%clk 0:00:10.3]} 40.
Qf8 {[%clk 0:00:09.1]} 1-0